bitfinex/quotes_BTCUSD_20220306
["timestamp","ask_amount","ask_price","bid_price","bid_amount"]
[1646586837438,0.759,38993.0,38989.0,0.0002056]
[1646586837639,0.759,38993.0,38989.0,0.007]
[1646586837883,0.759,38993.0,38989.0,0.0072056]
[1646586838787,0.759,38993.0,38989.0,0.007]
[1646586839083,0.759,38993.0,38990.0,0.06277957]
[1646586847880,0.11685312,38993.0,38990.0,0.08823957]
[1646586848085,0.11685312,38993.0,38992.0,0.02546]
[1646586848280,0.11685312,38993.0,38992.0,0.03794976]
[1646586848480,0.11685312,38993.0,38992.0,0.08924976]
[1646586848683,0.51977341,39006.0,38992.0,0.08924976]
[1646586848984,0.74395154,39013.0,39001.0,0.17037434]
[1646586848985,0.00020488,39004.0,39001.0,0.17037434]
[1646586849237,0.00020488,39004.0,39001.0,0.19583434]
[1646586849639,0.41000777,39009.0,39001.0,0.17037434]
[1646586850038,0.00020491,39004.0,39001.0,0.17037434]
[1646586850241,0.00020491,39004.0,39001.0,0.19583434]
[1646586850839,0.20696341,39008.0,39001.0,0.19583434]
[1646586851040,0.00020491,39004.0,39001.0,0.19583434]
[1646586852039,0.20696341,39010.0,39001.0,0.19583434]
[1646586852241,0.3802423,39009.0,39001.0,0.19583434]
[1646586852439,0.00020491,39004.0,39001.0,0.19583434]
[1646586853284,0.38029593,39009.0,39001.0,0.19583434]
[1646586853484,0.00020491,39004.0,39001.0,0.19583434]
[1646586853885,0.00020491,39004.0,38999.0,0.02546]
[1646586854084,0.00020491,39004.0,39002.0,0.1937577]
[1646586854288,0.00020491,39004.0,38999.0,0.03185787]
[1646586854486,0.15738802,39008.0,38999.0,0.03185787]
[1646586854690,0.0002049,39005.0,38999.0,0.03185787]
[1646586854885,0.15738802,39008.0,38999.0,0.03185787]
[1646586854886,0.1564183,39008.0,39000.0,0.01546]
[1646586855288,0.1564183,39008.0,39001.0,0.20136232]
[1646586855887,0.20701704,39009.0,39001.0,0.20136232]
[1646586856087,0.31281,39013.0,39001.0,0.20136232]
[1646586856088,0.20701704,39010.0,39002.0,0.0513]
[1646586856288,0.27158129,39013.0,39002.0,0.06676]
[1646586856289,0.20701704,39011.0,39002.0,0.06676]
[1646586856745,0.20701704,39011.0,39002.0,0.21676]
[1646586856943,0.55877129,39013.0,39004.0,0.06274357]
[1646586856944,0.39006449,39012.0,39004.0,0.06274357]
[1646586857140,0.39006449,39012.0,39005.0,0.0513]
[1646586857541,0.18190205,39012.0,39005.0,0.0513]
[1646586857740,0.20701704,39014.0,39005.0,0.0513]
[1646586858141,0.20701704,39014.0,39005.0,0.06676]
[1646586858343,0.00023477,39011.0,39005.0,0.06676]
[1646586858545,0.00023477,39011.0,39007.0,0.15135502]
[1646586859244,0.19939294,39013.0,39007.0,0.15135502]
[1646586859448,0.00023477,39011.0,39007.0,0.15135502]
[1646586859846,0.00023477,39011.0,39006.0,0.08075176]
[1646586860488,0.19939294,39013.0,39006.0,0.08075176]
[1646586860692,0.00023478,39010.0,39006.0,0.01546]
[1646586860889,0.00023478,39010.0,39008.0,0.20380087]
[1646586861692,0.19939294,39013.0,39008.0,0.20380087]
[1646586861890,0.00023477,39011.0,39008.0,0.20380087]
[1646586862096,0.00023477,39011.0,39006.0,0.01546]
[1646586862496,0.00023477,39011.0,39004.0,0.007]
[1646586862897,0.27115504,39011.0,39004.0,0.007]
[1646586863091,0.27115504,39011.0,38999.0,0.1176]
[1646586863092,0.3,39010.0,38999.0,0.1176]
[1646586863292,0.20725965,39005.0,38999.0,0.28950164]
[1646586863492,0.20725965,39005.0,38998.0,0.00011737]
[1646586864135,0.20725965,39005.0,38997.0,0.02546]
[1646586864335,0.20725965,39005.0,38998.0,0.00011737]
[1646586865036,0.1819974,39007.0,38998.0,0.00011737]
[1646586865237,0.1819974,39007.0,38997.0,0.02546]
[1646586865434,0.1819974,39007.0,38998.0,0.00011737]
[1646586866036,0.1819974,39007.0,39002.0,0.17385877]
[1646586866235,0.1819974,39007.0,38998.0,0.00011737]
[1646586866435,0.1669974,39007.0,38997.0,0.02546]
[1646586866634,0.1669974,39007.0,38998.0,0.00022672]
[1646586866836,0.16722407,39007.0,38998.0,0.00022672]
[1646586867239,0.15147266,39006.0,39000.0,0.21256409]
[1646586868386,0.15147266,39006.0,38998.0,0.00022672]
[1646586868883,0.15147266,39006.0,38997.0,0.02546]
[1646586869085,0.15147266,39006.0,38998.0,0.00022672]
[1646586869485,0.15147266,39006.0,38999.0,0.17424606]
[1646586870185,0.16722406,39007.0,38999.0,0.17424606]
[1646586870186,0.1669974,39007.0,38999.0,0.17424606]
[1646586870384,0.16721587,39007.0,38999.0,0.17424606]
[1646586871185,0.18658598,39005.0,38999.0,0.17424606]
[1646586871637,0.16721587,39007.0,38999.0,0.17424606]
[1646586872440,0.1669974,39007.0,38999.0,0.17424606]
[1646586872641,0.366672,39007.0,38999.0,0.17424606]
[1646586872840,0.16721587,39007.0,38999.0,0.17424606]
[1646586873039,0.00021847,39007.0,38999.0,0.17424606]
[1646586873641,0.5197733,39013.0,39000.0,0.04151046]
[1646586873642,0.01281,39013.0,39000.0,0.04151046]
[1646586873843,0.2069633,39015.0,39010.0,0.16506071]
[1646586874041,0.00021902,39007.0,39006.0,0.0513]
[1646586874241,0.00021902,39007.0,39006.0,0.37975118]
[1646586874841,0.19163198,39019.0,39006.0,0.37975118]
[1646586875042,0.20484324,39015.0,39006.0,0.37975118]
[1646586875244,0.20484324,39015.0,39006.0,0.0513]
[1646586875245,0.00021902,39008.0,39006.0,0.0513]
[1646586875487,0.00021902,39008.0,39002.0,0.1187]
[1646586876087,0.16341059,39006.0,39002.0,0.1187]
[1646586876287,0.16341059,39006.0,39000.0,0.006]
[1646586876988,0.16341059,39006.0,38998.0,0.21034224]
[1646586877187,0.16341059,39006.0,38999.0,0.17019026]
[1646586877387,0.16341059,39006.0,38997.0,0.30973418]
[1646586877587,0.16341059,39006.0,38998.0,0.00010662]
[1646586877987,0.46341059,39006.0,38998.0,0.00010662]
[1646586878188,0.16341059,39006.0,38998.0,0.00010662]
[1646586878388,0.16341059,39006.0,38998.0,0.16039907]
[1646586878589,0.15841059,39006.0,38997.0,0.28427418]
[1646586878788,0.15841059,39006.0,38998.0,0.00021885]
[1646586879657,0.3,39005.0,38997.0,0.21012316]
[1646586879858,0.3,39005.0,38998.0,0.00021885]
[1646586880258,0.3513,39005.0,38998.0,0.00021885]
[1646586880656,0.18761617,38999.0,38998.0,0.00021885]
[1646586880857,0.3513,39005.0,38992.0,0.21712316]
[1646586880858,0.06414884,39001.0,38992.0,0.21712316]
[1646586881057,0.06414884,39001.0,38997.0,0.00021885]
[1646586881257,0.3,39004.0,38997.0,0.00021885]
[1646586881860,0.1923297,38998.0,38997.0,0.00021885]
[1646586882061,0.1923297,38998.0,38992.0,0.21512316]
[1646586882263,0.1923297,38998.0,38996.0,0.00021885]
[1646586883391,0.1923297,38998.0,38991.0,0.21012316]
[1646586883591,0.1923297,38998.0,38995.0,0.00021885]
[1646586883991,0.02546,39002.0,38995.0,0.00021885]
[1646586884392,0.16504503,38999.0,38995.0,0.00021885]
[1646586884596,0.16504503,38999.0,38993.0,0.005]
[1646586884792,0.16504503,38999.0,38997.0,0.00021885]
[1646586885295,0.19050503,38999.0,38997.0,0.00021885]
[1646586885493,0.49050503,38999.0,38997.0,0.00021885]
[1646586885696,0.49050503,38999.0,38991.0,0.21067744]
[1646586885893,0.49050503,38999.0,38996.0,0.00021885]
[1646586886094,0.16504503,38999.0,38996.0,0.00021885]
[1646586886295,0.19050503,38999.0,38996.0,0.00021885]
[1646586886740,0.36415083,39000.0,38996.0,0.00021885]
[1646586886939,0.06415083,39000.0,38994.0,0.004]
[1646586887139,0.08961083,39000.0,38996.0,0.00021885]
[1646586887739,0.18515344,38997.0,38996.0,0.00021885]
[1646586888142,0.18515344,38997.0,38991.0,0.21067744]
[1646586888344,0.38961083,39000.0,38995.0,0.00021885]
[1646586888541,0.08961083,39000.0,38995.0,0.00021885]
[1646586888944,0.02546,39000.0,38995.0,0.00021885]
[1646586889443,0.02546,39000.0,38996.0,0.16356143]
[1646586889444,0.21352962,39000.0,38996.0,0.16356143]
[1646586889643,0.21352962,39000.0,38996.0,0.16378028]
[1646586890493,0.08887249,39002.0,38996.0,0.16356143]
[1646586890689,0.08887249,39002.0,38996.0,0.16378028]
[1646586891190,0.08387249,39002.0,38996.0,0.16378028]
[1646586891588,0.29711621,39002.0,38996.0,0.16378028]
[1646586891787,0.29711621,39002.0,38996.0,0.16356143]
[1646586891987,0.29711621,39002.0,38997.0,0.00021885]
[1646586892690,0.02546,39000.0,38997.0,0.00021885]
[1646586892889,0.02546,39000.0,38991.0,0.18819977]
[1646586893087,0.02546,38997.0,38991.0,0.18519977]
[1646586893288,0.20445283,38996.0,38991.0,0.18519977]
[1646586893691,0.20445283,38996.0,38991.0,0.19602113]
[1646586893891,0.02546,38997.0,38991.0,0.19602113]
[1646586894337,0.02546,38997.0,38992.0,0.00021886]
[1646586895138,0.19787536,38996.0,38992.0,0.17144657]
[1646586895340,0.06415841,38995.0,38991.0,0.19602113]
[1646586895539,0.06415841,38995.0,38993.0,0.00021902]
[1646586896542,0.06415841,38995.0,38991.0,0.38624656]
[1646586896740,0.06415841,38995.0,38992.0,0.00021902]
[1646586897742,0.06415841,38995.0,38991.0,0.19602113]
[1646586897988,0.06415841,38995.0,38992.0,0.00021886]
[1646586898988,0.06415841,38995.0,38991.0,0.19602113]
[1646586899390,0.05415841,38995.0,38991.0,0.19602113]
[1646586899788,0.05415841,38995.0,38992.0,0.19539709]
[1646586900392,0.05415841,38995.0,38991.0,0.19602113]
[1646586900794,0.11832241,38995.0,38991.0,0.19602113]
[1646586901853,0.02546,38998.0,38991.0,0.19602113]
[1646586902348,0.02546,38998.0,38994.0,0.19943108]
[1646586902349,0.18001241,38998.0,38994.0,0.19943108]
[1646586902553,0.02546,38998.0,38994.0,0.19943108]
[1646586902748,0.02546,38998.0,38993.0,0.00023429]
[1646586903748,0.02546,38998.0,38992.0,0.21059216]
[1646586903951,0.36414953,39001.0,38994.0,0.00021763]
[1646586904150,0.60926064,39003.0,38994.0,0.00021763]
[1646586904347,0.53230504,39003.0,38994.0,0.00021763]
[1646586904547,0.20684504,39002.0,38994.0,0.00021763]
[1646586904747,0.02546,39003.0,38994.0,0.00021763]
[1646586904748,0.23230504,39003.0,38994.0,0.00021763]
[1646586904947,0.20597741,39001.0,38996.0,0.16990179]
[1646586905149,0.23230504,39003.0,38996.0,0.16990179]
[1646586905150,0.23230504,39003.0,38998.0,0.18980078]
[1646586905409,0.02546,39003.0,38998.0,0.18980078]
[1646586906013,0.17932171,39004.0,38998.0,0.18980078]
[1646586906220,0.32034504,39006.0,38998.0,0.18980078]
[1646586906411,0.2070626,39007.0,38998.0,0.1900184]
[1646586907012,0.00021756,39007.0,38998.0,0.1900184]
[1646586907211,0.00021756,39007.0,39005.0,0.21947788]
[1646586907212,0.2070626,39007.0,39005.0,0.21947788]
[1646586907413,0.64721197,39011.0,38998.0,0.06403167]
[1646586907414,0.20684504,39009.0,38998.0,0.06403167]
[1646586907612,0.00021757,39007.0,38998.0,0.06424929]
[1646586907813,0.00021757,39007.0,39004.0,0.002]
[1646586908213,0.00021757,39007.0,39005.0,0.20625008]
[1646586908513,0.20684504,39010.0,39004.0,0.002]
[1646586908915,0.0002187,39008.0,39004.0,0.002]
[1646586909146,0.12017152,39006.0,39004.0,0.002]
[1646586909742,0.12017152,39006.0,38999.0,0.20991054]
[1646586909941,0.12017152,39006.0,39000.0,0.003]
[1646586910741,0.12017152,39006.0,39002.0,0.17276949]
[1646586912042,0.11517152,39006.0,39002.0,0.17276949]
[1646586913093,0.11517152,39006.0,38999.0,0.21391054]
[1646586913293,0.11517152,39006.0,38999.0,0.20991054]
[1646586914093,0.06008576,39006.0,38999.0,0.1888976]
[1646586914293,0.0002189,39007.0,38999.0,0.1888976]
[1646586914294,0.05508576,39002.0,38999.0,0.1888976]
[1646586914693,0.01790318,39002.0,38999.0,0.1888976]
[1646586914894,0.31052555,39018.0,39002.0,0.02546]
[1646586915096,0.61052555,39020.0,39004.0,0.02546]
[1646586915297,0.3,39020.0,39006.0,0.02546]
[1646586915493,0.3,39020.0,39007.0,0.07676]
[1646586915693,0.3,39020.0,39017.0,0.16017768]
[1646586915892,0.61052555,39022.0,39012.0,0.216892]
[1646586916495,0.61052555,39022.0,39008.0,0.1128]
[1646586916739,0.16779518,39020.0,39015.0,0.19785004]
[1646586916945,0.1677216,39020.0,39008.0,0.1128]
[1646586917143,0.3,39021.0,39007.0,0.0513]
[1646586917339,0.31052555,39022.0,39008.0,0.06022207]
[1646586917541,0.31052555,39022.0,39008.0,0.24654895]
[1646586917740,0.57518524,39023.0,39008.0,0.24654895]
[1646586917741,0.88571079,39023.0,39008.0,0.24654895]
[1646586918241,0.88571079,39023.0,39015.0,0.18955525]
[1646586918441,0.58571079,39023.0,39015.0,0.18955525]
[1646586918643,0.31052555,39023.0,39015.0,0.18955525]
[1646586918843,0.51523555,39024.0,39015.0,0.18955525]
[1646586919044,0.1919,39024.0,39015.0,0.18955525]
[1646586919245,0.50242555,39024.0,39015.0,0.18955525]
[1646586919647,0.00023418,39021.0,39015.0,0.18955525]
[1646586920701,0.1919,39024.0,39015.0,0.18955525]
[1646586920902,0.00023419,39020.0,39015.0,0.18955525]
[1646586921308,0.00023419,39020.0,39008.0,0.1128]
[1646586921505,0.06435719,39020.0,39008.0,0.1128]
[1646586921903,0.3,39019.0,39008.0,0.1128]
[1646586922104,0.02546,39018.0,39008.0,0.1128]
[1646586922306,0.17857418,39013.0,39005.0,0.1921]
[1646586922504,0.17857418,39013.0,39003.0,0.17565792]
[1646586922906,0.24270918,39013.0,39003.0,0.17565792]
[1646586923506,0.54270918,39013.0,39001.0,0.1229]
[1646586923906,0.54270918,39013.0,38999.0,0.03823208]
[1646586923907,0.06413127,39012.0,38999.0,0.03823208]
[1646586924156,0.06413127,39012.0,38999.0,0.03810987]
[1646586924348,0.06413127,39012.0,38999.0,0.05115396]
[1646586924551,0.00023403,39009.0,39006.0,0.17595145]
[1646586925350,0.17857418,39013.0,39006.0,0.17595145]
[1646586925752,0.00023404,39009.0,39006.0,0.17595145]
[1646586926553,0.1882,39017.0,39006.0,0.17595145]
[1646586926950,0.00023404,39009.0,39006.0,0.17595145]
[1646586927151,0.00023404,39009.0,39008.0,0.07051769]
[1646586927350,0.00023404,39009.0,39008.0,0.29075069]
[1646586927750,0.21160383,39018.0,39008.0,0.29075069]
[1646586927999,0.00022917,39010.0,39008.0,0.34205069]
[1646586929000,0.20067849,39020.0,39014.0,0.16501451]
[1646586929200,0.20067849,39020.0,39009.0,0.064107]
[1646586929400,0.20067849,39020.0,39008.0,0.207422]
[1646586929801,0.20067849,39020.0,39008.0,0.156122]
[1646586930501,0.00022915,39016.0,39008.0,0.156122]
[1646586930802,0.00022915,39016.0,39008.0,0.22221682]
[1646586931302,0.00022915,39016.0,39008.0,0.156122]
[1646586931501,0.1851027,39017.0,39011.0,0.2109022]
[1646586931744,0.00021769,39014.0,39011.0,0.2109022]
[1646586932544,0.20067849,39020.0,39011.0,0.2109022]
[1646586932943,0.00021769,39014.0,39011.0,0.2109022]
[1646586933745,0.1857402,39018.0,39008.0,0.18720368]
[1646586934143,0.00021769,39014.0,39008.0,0.18720368]
[1646586934344,0.00021769,39014.0,39005.0,0.003]
[1646586934745,0.00021769,39014.0,39011.0,0.21283571]
[1646586934944,0.24986137,39018.0,39011.0,0.21283571]
[1646586936508,0.00021846,39016.0,39011.0,0.21283571]
[1646586937505,0.1857402,39018.0,39011.0,0.21283571]
[1646586937705,0.00021846,39015.0,39011.0,0.21283571]
[1646586938708,0.3,39022.0,39011.0,0.21283571]
[1646586938905,0.3118,39024.0,39011.0,0.21283571]
[1646586938906,0.00021841,39015.0,39011.0,0.21283571]
[1646586939765,0.3118,39024.0,39011.0,0.21273722]
[1646586939766,0.15904173,39023.0,39011.0,0.21273722]
[1646586939966,0.15904173,39023.0,39018.0,0.17347288]
[1646586940269,0.29007998,39026.0,39018.0,0.17347288]
[1646586940273,0.27726998,39026.0,39018.0,0.17347288]
[1646586940668,0.17726998,39026.0,39018.0,0.17347288]
[1646586941266,0.01281,39027.0,39018.0,0.17347288]
[1646586941267,0.00021839,39024.0,39018.0,0.17347288]
[1646586941872,0.41403407,39043.0,39019.0,1.19300954]
[1646586942078,0.2032,39043.0,39024.0,0.0410472]
[1646586942269,0.2032,39043.0,39036.0,0.16124493]
[1646586942270,0.21378487,39041.0,39036.0,0.16124493]
[1646586942471,0.05,39044.0,39036.0,0.16124493]
[1646586942668,0.05,39044.0,39034.0,0.3]
[1646586942896,0.05,39044.0,39038.0,0.00183898]
[1646586943600,0.05,39044.0,39038.0,0.4328259]
[1646586943601,0.00011186,39043.0,39038.0,0.4328259]
[1646586943800,0.00011186,39043.0,39038.0,0.1328259]
[1646586944199,0.04011186,39044.0,39039.0,0.5]
[1646586944401,0.04011186,39044.0,39040.0,0.0513]
[1646586944700,0.04011186,39044.0,39043.0,0.16089961]
[1646586945399,0.04011186,39044.0,39041.0,0.3513]
[1646586946204,0.04011186,39044.0,39041.0,0.0513]
[1646586946415,0.16426965,39043.0,39038.0,0.00183898]
[1646586947045,0.04011186,39044.0,39038.0,0.00183898]
[1646586948147,0.20420309,39042.0,39038.0,0.00183898]
[1646586949749,0.26852288,39042.0,39038.0,0.00183898]
[1646586949945,0.20443702,39042.0,39038.0,0.00183898]
[1646586950147,0.00023393,39042.0,39038.0,0.00183898]
[1646586950603,0.25779465,39044.0,39038.0,0.00183898]
[1646586950999,0.00011181,39042.0,39038.0,0.00183898]
[1646586951898,0.04011186,39044.0,39038.0,0.00183898]
[1646586952999,0.04011186,39044.0,39042.0,0.31465518]
[1646586953200,0.04011186,39044.0,39043.0,0.3513]
[1646586953698,0.04011186,39044.0,39043.0,0.54834615]
[1646586953899,0.04011186,39044.0,39043.0,0.24834615]
[1646586956152,0.04011186,39044.0,39043.0,0.54834615]
[1646586957148,0.00023393,39045.0,39044.0,0.8]
[1646586957349,0.00023393,39045.0,39044.0,1.1513]
[1646586957650,0.00023393,39045.0,39044.0,4.1513]
[1646586957910,0.166365,39058.0,39044.0,4.16045307]
[1646586958100,0.0128,39059.0,39050.0,0.00183841]
[1646586958101,0.0078,39059.0,39050.0,0.00183841]
[1646586958300,0.0078,39059.0,39052.0,0.06578036]
[1646586958501,0.66873532,39063.0,39052.0,0.06578036]
[1646586958502,0.00093532,39063.0,39052.0,0.06578036]
[1646586958702,0.2099,39070.0,39050.0,0.00183841]
[1646586958703,0.42383532,39069.0,39050.0,0.00183841]
[1646586958899,0.42383532,39069.0,39050.0,0.02729841]
[1646586959101,0.17964032,39068.0,39057.0,0.20943123]
[1646586959303,0.0128,39067.0,39063.0,0.15526667]
[1646586959605,2.09982083,39075.0,39063.0,0.15526667]
[1646586959606,0.01278,39069.0,39063.0,0.15526667]
[1646586959801,0.01278,39074.0,39063.0,0.15526667]
[1646586960000,0.01278,39074.0,39063.0,0.20656667]
[1646586960301,0.5118,39080.0,39073.0,0.17547222]
[1646586960302,0.21836965,39078.0,39073.0,0.17547222]
[1646586960504,0.05,39080.0,39074.0,0.00183728]
[1646586960505,0.00778,39077.0,39074.0,0.00183728]
[1646586960700,0.05,39080.0,39074.0,0.00183728]
[1646586960701,0.06278,39080.0,39074.0,0.00183728]
[1646586961303,0.02546,39079.0,39074.0,0.00183728]
[1646586961500,0.06278,39080.0,39074.0,0.00183728]
[1646586961502,0.29879353,39078.0,39074.0,0.00183728]
[1646586961754,0.01278,39077.0,39074.0,0.00183728]
[1646586962649,0.00778,39077.0,39074.0,0.00183728]
[1646586963052,0.02546,39076.0,39074.0,0.00183728]
[1646586963252,0.08949204,39076.0,39065.0,0.00183769]
[1646586963454,0.02546,39074.0,39065.0,0.00183769]
[1646586963651,0.06404,39073.0,39065.0,0.00183769]
[1646586963855,0.153538,39073.0,39065.0,0.00183769]
[1646586964253,0.00022606,39071.0,39065.0,0.00183769]
[1646586964652,0.17704912,39070.0,39065.0,0.00183769]
[1646586964853,0.00022606,39071.0,39065.0,0.00183769]
[1646586965153,0.12806322,39078.0,39065.0,0.00183769]
[1646586965395,0.06402851,39076.0,39065.0,0.00183769]
[1646586965796,0.1711541,39072.0,39065.0,0.00183769]
[1646586966400,0.17166615,39075.0,39065.0,0.00183769]
[1646586966597,0.00022587,39070.0,39065.0,0.00183769]
[1646586967599,0.17166615,39075.0,39065.0,0.00183769]
[1646586967799,0.18711986,39069.0,39065.0,0.00183769]
[1646586968199,0.37020583,39069.0,39065.0,0.00183769]
[1646586968500,0.18711986,39069.0,39065.0,0.00183769]
[1646586968700,0.02546,39072.0,39065.0,0.00183769]
[1646586968902,0.00023039,39069.0,39065.0,0.00183769]
[1646586969849,0.02546,39071.0,39065.0,0.00183769]
[1646586970552,0.15,39067.0,39065.0,0.00183769]
[1646586970750,0.3513,39066.0,39062.0,0.005]
[1646586970952,0.27882727,39065.0,39062.0,0.005]
[1646586971151,0.48532677,39064.0,39062.0,0.005]
[1646586971357,0.02546,39062.0,39054.0,0.18895935]
[1646586971752,0.01546,39062.0,39054.0,0.18895935]
[1646586971951,0.06405832,39061.0,39054.0,0.18895935]
[1646586972250,0.1,39065.0,39054.0,0.18895935]
[1646586972650,0.3,39064.0,39054.0,0.18895935]
[1646586972899,0.10023377,39065.0,39054.0,0.18895935]
[1646586972900,0.00023377,39065.0,39054.0,0.18895935]
[1646586973099,0.00023377,39065.0,39060.0,0.20732705]
[1646586973301,0.00023377,39065.0,39060.0,0.39305103]
[1646586973500,0.1958,39073.0,39060.0,0.20732705]
[1646586973703,0.1958,39073.0,39061.0,0.0513]
[1646586973903,0.00011059,39065.0,39061.0,0.0513]
[1646586974701,0.20445887,39071.0,39061.0,0.0513]
[1646586975002,0.00021776,39065.0,39061.0,0.0513]
[1646586975202,0.00021776,39065.0,39060.0,0.20732705]
[1646586976004,0.17212615,39069.0,39060.0,0.20732705]
[1646586976204,0.00021776,39065.0,39060.0,0.20732705]
[1646586977246,0.06403657,39071.0,39060.0,0.20732705]
[1646586977447,0.19160323,39070.0,39060.0,0.20732705]
[1646586977746,0.06403657,39071.0,39060.0,0.20732705]
[1646586977949,0.36403657,39071.0,39060.0,0.20732705]
[1646586978349,0.06403964,39069.0,39057.0,0.005]
[1646586978750,0.17789753,39065.0,39057.0,0.005]
[1646586978951,0.32546,39064.0,39057.0,0.005]
[1646586979160,0.37676,39064.0,39057.0,0.005]
[1646586979350,0.21445876,39063.0,39057.0,0.005]
[1646586979551,0.36405166,39062.0,39057.0,0.005]
[1646586979951,0.06405166,39062.0,39057.0,0.005]
[1646586980412,0.06405166,39062.0,39054.0,0.005]
[1646586980413,0.08951166,39062.0,39054.0,0.005]
[1646586980617,0.38951166,39062.0,39054.0,0.005]
[1646586981216,0.38951166,39062.0,39054.0,0.18853097]
[1646586981520,0.38951166,39062.0,39054.0,0.18353097]
[1646586981916,0.064056,39061.0,39054.0,0.18353097]
[1646586982116,0.12811675,39060.0,39054.0,0.18353097]
[1646586982316,0.27892298,39060.0,39050.0,0.00720371]
[1646586983019,0.064068,39057.0,39050.0,0.00720371]
[1646586983217,0.064068,39057.0,39050.0,0.007]
[1646586983218,0.06406915,39055.0,39050.0,0.007]
[1646586983417,0.06406915,39055.0,39054.0,0.00915307]
[1646586984655,0.24012811,39055.0,39054.0,0.00915307]
[1646586984855,0.06406915,39055.0,39054.0,0.00915307]
[1646586985956,0.25011775,39055.0,39054.0,0.00915307]
[1646586986758,0.21728775,39055.0,39054.0,0.00915307]
[1646586987757,0.21728775,39055.0,39054.0,0.00415307]
[1646586987998,0.089533,39052.0,39042.0,19.0]
[1646586988200,0.97525583,39050.0,39042.0,6.0]
[1646586988500,0.97525583,39050.0,39036.0,0.0128]
[1646586988501,0.02525583,39048.0,39036.0,0.0128]
[1646586988698,0.02525583,39048.0,39035.0,0.15]
[1646586988898,0.02525583,39043.0,39035.0,0.36411396]
[1646586989099,0.15344483,39041.0,39035.0,0.36411396]
[1646586989304,0.45886448,39040.0,39035.0,0.54091265]
[1646586989499,0.45886448,39040.0,39035.0,0.15]
[1646586989699,0.3513,39040.0,39035.0,0.15]
[1646586990298,0.0513,39040.0,39035.0,0.15]
[1646586990499,0.0513,39040.0,39036.0,0.18581545]
[1646586990998,0.27118446,39039.0,39036.0,0.18581545]
[1646586991199,0.06408997,39039.0,39036.0,0.18581545]
[1646586991397,0.12818397,39039.0,39036.0,0.18581545]
[1646586991673,0.06408997,39039.0,39036.0,0.18581545]
[1646586992074,0.06408997,39039.0,39035.0,0.15]
[1646586992275,0.211716,39038.0,39035.0,0.15]
[1646586992878,0.275811,39038.0,39035.0,0.15021952]
[1646586993478,0.211716,39038.0,39037.0,0.19735352]
[1646586993879,0.32525583,39041.0,39037.0,0.19735352]
[1646586993881,0.3,39041.0,39037.0,0.19735352]
[1646586994078,0.0513,39043.0,39037.0,0.19735352]
[1646586994277,0.006,39044.0,39037.0,0.19735352]
[1646586994680,0.306,39044.0,39037.0,0.19735352]
[1646586994879,0.48140272,39044.0,39037.0,0.19735352]
[1646586995280,0.48140272,39044.0,39039.0,0.00021558]
[1646586995501,0.5394829,39044.0,39039.0,0.00021558]
[1646586996300,0.5394829,39044.0,39037.0,0.38250248]
[1646586996500,0.5394829,39044.0,39040.0,0.00021558]
[1646586996700,0.2394829,39044.0,39040.0,0.00021558]
[1646586997301,0.06408018,39044.0,39040.0,0.00021558]
[1646586997502,0.1,39045.0,39037.0,0.38250248]
[1646586997704,0.3,39046.0,39040.0,0.00021871]
[1646586998100,0.32546,39046.0,39040.0,0.00021871]
[1646586998300,0.25336232,39045.0,39040.0,0.00021871]
[1646586998701,0.25336232,39045.0,39037.0,0.38250248]
[1646586999001,0.25336232,39045.0,39041.0,0.00021871]
[1646586999250,0.1,39045.0,39041.0,0.00021871]
[1646586999951,0.06480123,39049.0,39037.0,0.38250248]
[1646586999952,0.03934123,39049.0,39037.0,0.38250248]
[1646587000153,0.03934123,39049.0,39041.0,0.00021871]
[1646587000351,0.1157,39053.0,39047.0,0.19269801]
[1646587000551,0.0128,39060.0,39047.0,0.19269801]
[1646587000753,0.0128,39060.0,39049.0,0.2161454]
[1646587000754,0.20701663,39058.0,39049.0,0.2161454]
[1646587000952,0.20701663,39058.0,39047.0,0.19269801]
[1646587001454,0.17681687,39056.0,39048.0,0.00021889]
[1646587001654,0.20701663,39058.0,39048.0,0.00021889]
[1646587002056,0.20701663,39058.0,39048.0,0.16882678]
[1646587002258,0.3128,39060.0,39048.0,0.16882678]
[1646587002458,0.0128,39060.0,39048.0,0.16860789]
[1646587002656,0.15911378,39060.0,39055.0,0.21376157]
[1646587002903,0.15911378,39060.0,39048.0,0.22012678]
[1646587003304,0.16650942,39057.0,39048.0,0.22012678]
[1646587003504,0.16650942,39057.0,39048.0,0.0513]
[1646587003704,0.16650942,39057.0,39048.0,0.05151889]
[1646587003905,0.16650942,39057.0,39048.0,0.21259481]
[1646587004106,0.18252635,39053.0,39048.0,0.00021889]
[1646587004509,0.21116353,39050.0,39048.0,0.00021889]
[1646587004708,0.21116353,39050.0,39042.0,0.004]
[1646587004911,0.21116353,39050.0,39048.0,0.00021106]
[1646587005907,0.21116353,39050.0,39040.0,0.20147784]
[1646587005908,0.27523524,39050.0,39040.0,0.20147784]
[1646587006108,0.18799232,39047.0,39042.0,0.002]
[1646587006309,0.18799232,39047.0,39046.0,0.00415307]
[1646587006511,0.18799232,39047.0,39042.0,0.002]
[1646587006512,0.48799232,39047.0,39042.0,0.002]
[1646587007353,0.48799232,39047.0,39043.0,0.00021107]
[1646587007354,0.55208332,39047.0,39043.0,0.00021107]
[1646587007754,0.68025902,39047.0,39043.0,0.00021107]
[1646587008359,0.68025902,39047.0,39040.0,0.15802112]
[1646587008557,0.68025902,39047.0,39043.0,0.00020366]
[1646587009556,0.68025902,39047.0,39039.0,0.16554147]
[1646587009757,0.06408007,39045.0,39043.0,0.00020366]
[1646587010802,0.06408007,39045.0,39036.0,0.15608731]
[1646587011003,0.0640846,39042.0,39034.0,0.0031]
[1646587011206,0.0640846,39042.0,39039.0,0.00415307]
[1646587011409,0.0640846,39042.0,39041.0,0.00415307]
[1646587012105,0.21632708,39042.0,39041.0,0.00415307]
[1646587012305,0.0640846,39042.0,39041.0,0.00415307]
[1646587013708,0.25787002,39042.0,39041.0,0.00415307]
[1646587013907,0.55787002,39042.0,39041.0,0.00415307]
[1646587015660,0.25787002,39042.0,39041.0,0.00415307]
[1646587016560,0.25787002,39042.0,39040.0,0.0002042]
[1646587016561,0.06408014,39045.0,39040.0,0.0002042]
[1646587016761,0.06408014,39045.0,39035.0,0.32355599]
[1646587016960,0.3,39044.0,39040.0,0.0002042]
[1646587017161,0.06408014,39045.0,39040.0,0.0002042]
[1646587017662,0.19214835,39043.0,39040.0,0.0002042]
[1646587017898,0.19214835,39043.0,39042.0,0.00415307]
[1646587018501,0.28076025,39045.0,39042.0,0.00415307]
[1646587018703,0.28076025,39045.0,39040.0,0.0002042]
[1646587018900,0.58076025,39045.0,39040.0,0.0002042]
[1646587019102,0.58076025,39045.0,39039.0,0.16325484]